bitfinex/quotes_BTCUSD_20220120
["timestamp","ask_amount","ask_price","bid_price","bid_amount"]
[1642706846864,0.80500547,43152.0,43151.0,0.00139658]
[1642706847063,1.16612457,43152.0,43151.0,0.00020628]
[1642706847324,1.17833523,43152.0,43151.0,0.00020628]
[1642706847520,1.285,43151.0,43150.0,0.00022347]
[1642706847720,1.338671,43151.0,43150.0,0.00022347]
[1642706847919,1.338271,43151.0,43150.0,0.00022347]
[1642706848119,1.70624239,43151.0,43150.0,0.00022347]
[1642706848520,0.5004,43149.0,43148.0,0.00094767]
[1642706848722,1.01656395,43149.0,43148.0,0.00094767]
[1642706848918,1.88952959,43149.0,43148.0,0.00094767]
[1642706849119,1.88992959,43149.0,43148.0,0.00094767]
[1642706849319,2.15150605,43149.0,43135.0,1.2282]
[1642706849522,0.40429293,43148.0,43146.0,0.00094774]
[1642706849722,2.29117881,43147.0,43146.0,0.00094774]
[1642706850121,2.34916281,43147.0,43146.0,0.00123997]
[1642706850322,2.39916281,43147.0,43146.0,0.00123997]
[1642706850622,2.14064738,43147.0,43146.0,0.00029223]
[1642706851075,2.25872148,43147.0,43144.0,0.0009478]
[1642706851273,1.50086066,43146.0,43145.0,0.00030943]
[1642706851470,2.95849256,43146.0,43145.0,0.00030943]
[1642706851669,0.9,43145.0,43144.0,0.0009478]
[1642706851870,0.058397,43141.0,43137.0,0.05939]
[1642706852070,0.30816734,43138.0,43137.0,0.05939]
[1642706852273,1.07622258,43138.0,43137.0,0.05939]
[1642706852574,0.82622258,43138.0,43137.0,0.05939]
[1642706853370,0.83722258,43138.0,43137.0,0.05939]
[1642706854573,0.82622258,43138.0,43137.0,0.05939]
[1642706854807,0.57166968,43138.0,43137.0,0.05939]
[1642706855408,0.58266968,43138.0,43137.0,0.05939]
[1642706856010,1.04081669,43138.0,43137.0,0.05939]
[1642706856213,1.39741078,43138.0,43137.0,0.05939]
[1642706856410,2.63241078,43138.0,43137.0,0.05939]
[1642706856610,2.62141078,43138.0,43137.0,0.05939]
[1642706856811,2.83345793,43138.0,43137.0,0.05939]
[1642706857409,2.90345793,43138.0,43137.0,0.05939]
[1642706858311,2.85345793,43138.0,43137.0,0.05939]
[1642706858561,2.84145793,43138.0,43137.0,0.05939]
[1642706858961,0.0004,43131.0,43129.0,0.0158]
[1642706859162,0.11128,43130.0,43129.0,0.0158]
[1642706859366,0.11168,43130.0,43129.0,0.0158]
[1642706859560,0.58323577,43130.0,43129.0,0.0158]
[1642706859761,0.86044195,43130.0,43129.0,0.0158]
[1642706860261,0.98324417,43130.0,43129.0,0.0158]
[1642706860565,0.98284417,43130.0,43129.0,0.0158]
[1642706860765,0.8,43129.0,43127.0,0.00101044]
[1642706860964,0.63139848,43128.0,43127.0,0.00101044]
[1642706861163,1.86639848,43128.0,43127.0,0.00101044]
[1642706861363,0.058015,43125.0,43116.0,0.2964]
[1642706861564,0.32459284,43119.0,43113.0,0.00404319]
[1642706861763,0.32459284,43119.0,43113.0,0.00411519]
[1642706861764,0.17776406,43117.0,43113.0,0.00411519]
[1642706861963,0.17776406,43117.0,43113.0,0.00404319]
[1642706862163,0.17776406,43117.0,43114.0,0.00053289]
[1642706862921,0.37353988,43117.0,43114.0,0.00053289]
[1642706863125,0.006871,43116.0,43114.0,0.00053289]
[1642706863519,0.29174371,43116.0,43114.0,0.00053289]
[1642706863922,0.006871,43115.0,43114.0,0.00053289]
[1642706864125,0.04596785,43115.0,43114.0,0.00053289]
[1642706864320,0.006871,43115.0,43114.0,0.00053289]
[1642706864820,0.053271,43115.0,43114.0,0.00053289]
[1642706865420,0.065271,43115.0,43114.0,0.00053289]
[1642706865624,0.065271,43115.0,43113.0,0.00062208]
[1642706865819,0.006871,43114.0,43113.0,0.00055008]
[1642706866056,0.40610076,43114.0,43113.0,0.00062208]
[1642706866458,0.40610076,43114.0,43113.0,0.00055008]
[1642706866659,0.40610076,43114.0,43113.0,0.00062208]
[1642706867358,0.41210076,43114.0,43113.0,0.00062208]
[1642706867660,0.059271,43114.0,43113.0,0.00055008]
[1642706868064,0.059271,43114.0,43113.0,0.65055008]
[1642706868265,0.0524,43114.0,43113.0,0.65055008]
[1642706868661,0.0464,43114.0,43113.0,0.65055008]
[1642706869463,0.007,43114.0,43113.0,0.65055008]
[1642706870316,0.17776406,43117.0,43114.0,0.264]
[1642706870527,0.006871,43116.0,43114.0,0.264]
[1642706870720,0.006871,43116.0,43115.0,0.0005157]
[1642706871318,0.025871,43116.0,43115.0,0.0005157]
[1642706872017,0.025871,43116.0,43115.0,0.2505157]
[1642706872519,0.006871,43116.0,43115.0,0.2505157]
[1642706873317,0.019871,43116.0,43115.0,0.2505157]
[1642706873563,0.013,43116.0,43115.0,0.2505157]
[1642706873960,0.013,43116.0,43115.0,0.6505157]
[1642706874163,0.01424761,43116.0,43115.0,0.0005157]
[1642706874363,0.06334512,43116.0,43115.0,0.0005157]
[1642706874563,0.24788886,43116.0,43115.0,0.0005157]
[1642706874960,0.54788886,43116.0,43115.0,0.0005157]
[1642706875161,1.06426817,43116.0,43115.0,0.0005157]
[1642706875361,1.26812648,43116.0,43115.0,0.0005157]
[1642706875762,1.31812648,43116.0,43115.0,0.0005157]
[1642706875960,1.27589997,43116.0,43115.0,0.0005157]
[1642706876359,1.6500582,43116.0,43115.0,0.0005157]
[1642706876560,1.6360582,43116.0,43115.0,0.0005157]
[1642706876760,1.6860582,43116.0,43115.0,0.0005157]
[1642706877306,1.6990582,43116.0,43115.0,0.0005157]
[1642706878607,1.6860582,43116.0,43115.0,0.0005157]
[1642706879308,1.6970582,43116.0,43115.0,0.0005157]
[1642706880308,1.6506582,43116.0,43115.0,0.0005157]
[1642706880508,1.3506582,43116.0,43115.0,0.0005157]
[1642706880711,0.96549997,43116.0,43115.0,0.0005157]
[1642706881160,0.91549997,43116.0,43115.0,0.0005157]
[1642706881364,0.74195623,43116.0,43115.0,0.0005157]
[1642706881560,0.017871,43116.0,43115.0,0.0005157]
[1642706881960,0.017871,43116.0,43115.0,0.3005157]
[1642706882361,0.011,43116.0,43115.0,0.3005157]
[1642706882561,0.33741929,43117.0,43115.0,0.0005157]
[1642706882761,0.19642643,43116.0,43115.0,0.0005157]
[1642706883363,0.21342643,43116.0,43115.0,0.0005157]
[1642706884267,0.023871,43116.0,43115.0,0.0005157]
[1642706884664,0.006871,43116.0,43115.0,0.0005157]
[1642706884912,0.006871,43116.0,43115.0,0.4505157]
[1642706885612,0.023871,43116.0,43115.0,0.0005157]
[1642706885816,0.273871,43116.0,43115.0,0.0005157]
[1642706886012,0.35329844,43116.0,43115.0,0.0005157]
[1642706886412,0.023871,43116.0,43115.0,0.0005157]
[1642706886620,0.006871,43116.0,43115.0,0.0005157]
[1642706887314,0.023871,43116.0,43115.0,0.0005157]
[1642706887715,0.33566695,43116.0,43115.0,0.0005157]
[1642706888664,0.31866695,43116.0,43115.0,0.0005157]
[1642706889467,0.33566695,43116.0,43115.0,0.0005157]
[1642706890065,0.023871,43116.0,43115.0,0.0005157]
[1642706890666,0.006871,43116.0,43115.0,0.0005157]
[1642706891464,0.02480457,43116.0,43115.0,0.0005157]
[1642706892709,0.00680457,43116.0,43115.0,0.0005157]
[1642706893110,0.32034729,43116.0,43115.0,0.0005157]
[1642706893511,0.33334729,43116.0,43115.0,0.0015157]
[1642706894711,0.36518588,43116.0,43115.0,0.0005157]
[1642706894913,0.41518588,43116.0,43115.0,0.0005157]
[1642706895111,0.37162719,43116.0,43115.0,0.0005157]
[1642706895513,0.38562719,43116.0,43115.0,0.0005157]
[1642706895711,0.63562719,43116.0,43115.0,0.0005157]
[1642706896164,0.38562719,43116.0,43115.0,0.0005157]
[1642706896558,0.37162719,43116.0,43115.0,0.0005157]
[1642706897359,0.38562719,43116.0,43115.0,0.0005157]
[1642706898658,0.37162719,43116.0,43115.0,0.0005157]
[1642706898860,0.32162719,43116.0,43115.0,0.0005157]
[1642706899560,0.33562719,43116.0,43115.0,0.0005157]
[1642706900819,0.37162719,43116.0,43115.0,0.0005157]
[1642706901420,0.38562719,43116.0,43115.0,0.0005157]
[1642706902621,0.37162719,43116.0,43115.0,0.0005157]
[1642706903422,0.38462719,43116.0,43115.0,0.0005157]
[1642706905264,0.37162719,43116.0,43115.0,0.0005157]
[1642706905465,0.38562719,43116.0,43115.0,0.0005157]
[1642706905666,0.38434729,43116.0,43115.0,0.0005157]
[1642706905866,0.006746,43115.0,43114.0,0.0095157]
[1642706906066,0.31976184,43115.0,43114.0,0.0095157]
[1642706906969,0.006746,43115.0,43114.0,0.0095157]
[1642706907414,0.020746,43115.0,43114.0,0.0095157]
[1642706908617,0.006746,43115.0,43114.0,0.0095157]
[1642706909421,0.020746,43115.0,43114.0,0.0095157]
[1642706911366,0.006746,43115.0,43114.0,0.0095157]
[1642706911562,0.020746,43115.0,43114.0,0.0095157]
[1642706912764,0.006746,43115.0,43114.0,0.0095157]
[1642706913564,0.021746,43115.0,43114.0,0.0095157]
[1642706914817,0.006746,43115.0,43114.0,0.0095157]
[1642706915219,0.05238168,43115.0,43114.0,0.0095157]
[1642706915420,0.020746,43115.0,43114.0,0.0095157]
[1642706916620,0.006746,43115.0,43114.0,0.0095157]
[1642706917421,0.020746,43115.0,43114.0,0.0095157]
[1642706918424,0.33235628,43115.0,43114.0,0.0095157]
[1642706918663,0.006746,43115.0,43114.0,0.0095157]
[1642706919263,0.1248894,43115.0,43114.0,0.0095157]
[1642706919460,0.020746,43115.0,43114.0,0.0095157]
[1642706919661,0.070746,43115.0,43114.0,0.0095157]
[1642706919862,0.1888894,43115.0,43114.0,0.0095157]
[1642706920663,0.1748894,43115.0,43114.0,0.0095157]
[1642706921364,0.056746,43115.0,43114.0,0.0095157]
[1642706921564,0.020746,43115.0,43114.0,0.0095157]
[1642706922163,0.13889016,43115.0,43114.0,0.0095157]
[1642706922411,0.072146,43115.0,43114.0,0.0095157]
[1642706922611,0.14029016,43115.0,43114.0,0.0095157]
[1642706922811,0.12629016,43115.0,43114.0,0.0095157]
[1642706923012,0.5645372,43115.0,43114.0,0.0095157]
[1642706923612,0.5775372,43115.0,43114.0,0.0095157]
[1642706924012,0.57744906,43115.0,43114.0,0.0095157]
[1642706925414,0.56444906,43115.0,43114.0,0.0095157]
[1642706925612,0.57744906,43115.0,43114.0,0.0095157]
[1642706926761,0.56444906,43115.0,43114.0,0.0095157]
[1642706927263,0.22620202,43115.0,43114.0,0.0095157]
[1642706927462,0.23920202,43115.0,43114.0,0.0095157]
[1642706928864,0.22620202,43115.0,43114.0,0.0095157]
[1642706929465,0.19320202,43115.0,43114.0,0.0095157]
[1642706930822,0.17620202,43115.0,43114.0,0.0095157]
[1642706931621,0.19320202,43115.0,43114.0,0.0095157]
[1642706932723,0.17620202,43115.0,43114.0,0.0095157]
[1642706933565,0.19320202,43115.0,43114.0,0.0095157]
[1642706934667,0.37173355,43115.0,43114.0,0.0095157]
[1642706934868,0.35473355,43115.0,43114.0,0.0095157]
[1642706935770,0.32182169,43115.0,43114.0,0.0095157]
[1642706936169,0.37182169,43115.0,43114.0,0.0095157]
[1642706936571,0.37311795,43115.0,43114.0,0.0095157]
[1642706936771,0.40611795,43115.0,43114.0,0.0095157]
[1642706936971,0.41201065,43115.0,43114.0,0.0095157]
[1642706937171,0.41201065,43115.0,43111.0,0.01]
[1642706937172,0.61903139,43113.0,43112.0,0.00100874]
[1642706937421,0.67217739,43113.0,43112.0,0.00100874]
[1642706937624,1.15841705,43113.0,43112.0,0.00100874]
[1642706938023,1.31594737,43113.0,43112.0,0.00100874]
[1642706938222,0.05,43112.0,43111.0,0.01]
[1642706938422,0.71817293,43112.0,43111.0,0.01]
[1642706938625,2.66666791,43112.0,43111.0,6.876e-05]
[1642706938824,0.506746,43111.0,43110.0,6.876e-05]
[1642706939031,1.83943482,43111.0,43110.0,6.876e-05]
[1642706939224,2.12134565,43111.0,43110.0,6.876e-05]
[1642706939423,2.12134565,43111.0,43105.0,7.2e-05]
[1642706939424,0.30671425,43106.0,43105.0,7.2e-05]
[1642706939624,0.36346025,43106.0,43105.0,7.2e-05]
[1642706939824,0.53160441,43106.0,43105.0,0.00010314]
[1642706940024,0.47255003,43106.0,43105.0,0.00010314]
[1642706940225,0.47255003,43106.0,43103.0,0.00013752]
[1642706940226,0.0004,43104.0,43103.0,0.00013752]
[1642706940425,0.006746,43104.0,43103.0,0.00013752]
[1642706940924,0.006746,43104.0,43102.0,0.00022671]
[1642706941172,0.38677154,43104.0,43102.0,0.00015471]
[1642706941374,0.38677154,43104.0,43103.0,0.00013752]
[1642706941679,0.38677154,43104.0,43101.0,0.01]
[1642706941680,0.11814416,43103.0,43102.0,0.00022671]
[1642706941872,0.13714416,43104.0,43102.0,0.00015471]
[1642706942075,0.11814416,43103.0,43102.0,0.00015471]
[1642706942272,0.11814416,43103.0,43102.0,0.00022671]
[1642706943279,0.05,43103.0,43102.0,0.25022671]
[1642706943477,0.11814416,43103.0,43102.0,0.25022671]
[1642706943676,0.031,43103.0,43102.0,0.25022671]
[1642706944481,0.14914416,43103.0,43102.0,0.25022671]
[1642706944913,0.11814416,43103.0,43102.0,0.25022671]
[1642706945413,0.2571781,43107.0,43102.0,0.25022671]
[1642706945613,0.13214416,43103.0,43102.0,0.25022671]
[1642706945816,0.13214416,43103.0,43102.0,0.250072]
[1642706946919,0.11814416,43103.0,43102.0,0.250072]
[1642706947316,0.11814416,43106.0,43102.0,0.250072]
[1642706947514,0.45110969,43106.0,43102.0,0.250072]
[1642706947714,0.014,43103.0,43102.0,0.250072]
[1642706947915,0.014,43103.0,43102.0,0.25126301]
[1642706948115,0.014,43103.0,43102.0,0.80141772]
[1642706948967,0.00128882,43111.0,43102.0,0.80022671]
[1642706949375,0.1181508,43111.0,43103.0,0.04653752]
[1642706949573,0.1181508,43111.0,43104.0,0.35625049]
[1642706949770,0.1181508,43111.0,43107.0,0.0012701]
[1642706949970,0.1181508,43111.0,43108.0,0.0464]
[1642706950171,0.01903139,43113.0,43109.0,0.60648051]
[1642706950371,0.01903139,43113.0,43110.0,0.0464]
[1642706951573,0.01903139,43113.0,43110.0,0.0624]
[1642706951771,0.01810427,43113.0,43110.0,0.0624]
[1642706952822,0.01810427,43113.0,43110.0,0.0464]
[1642706953023,0.20306593,43121.0,43110.0,0.0464]
[1642706953225,0.20306593,43121.0,43112.0,0.057998]
[1642706953425,0.11813582,43120.0,43112.0,0.057998]
[1642706953726,0.00013752,43119.0,43112.0,0.057998]
[1642706953924,0.00013752,43119.0,43110.0,0.0614]
[1642706954127,0.00012033,43118.0,43110.0,0.0614]
[1642706954523,0.00010314,43117.0,43110.0,0.0614]
[1642706954925,0.24929219,43114.0,43110.0,0.0464]
[1642706955726,0.00013752,43119.0,43110.0,0.0634]
[1642706956170,0.00012033,43118.0,43110.0,0.0634]
[1642706956470,0.00010314,43117.0,43110.0,0.0634]
[1642706956668,0.29199652,43114.0,43110.0,0.0634]
[1642706956870,0.29199652,43114.0,43110.0,0.0464]
[1642706957475,0.11813825,43113.0,43110.0,0.0464]
[1642706957672,0.11813825,43113.0,43110.0,0.0634]
[1642706957873,0.29199652,43114.0,43110.0,0.0634]
[1642706958574,8.595e-05,43116.0,43110.0,0.0634]
[1642706958774,0.11814308,43113.0,43110.0,0.0634]
[1642706958973,0.11814308,43113.0,43110.0,0.0464]
[1642706959175,6.876e-05,43115.0,43111.0,0.3105304]
[1642706959374,6.876e-05,43115.0,43110.0,0.0464]
[1642706959673,6.876e-05,43115.0,43111.0,0.014]
[1642706960926,6.876e-05,43115.0,43109.0,0.058002]
[1642706961325,6.876e-05,43115.0,43108.0,0.04759096]
[1642706961726,6.876e-05,43115.0,43109.0,0.023]
[1642706962829,6.876e-05,43115.0,43108.0,0.04759095]
[1642706963426,6.876e-05,43115.0,43108.0,0.0464]
[1642706963670,6.876e-05,43115.0,43108.0,0.06959094]
[1642706963877,0.23956602,43114.0,43108.0,0.06959094]
[1642706964674,0.23956602,43114.0,43108.0,0.0684]
[1642706964874,0.11814607,43113.0,43108.0,0.00119093]
[1642706965076,0.04373945,43112.0,43108.0,0.00119093]
[1642706965476,0.11814607,43111.0,43108.0,0.00119093]
[1642706965676,0.11814607,43111.0,43108.0,0.03819093]
[1642706965973,0.11814607,43111.0,43108.0,0.03819092]
[1642706966973,0.11814607,43111.0,43105.0,0.00010314]
[1642706967175,0.11814607,43111.0,43107.0,0.00119093]
[1642706967621,0.12014607,43111.0,43107.0,0.00119093]
[1642706968020,0.3225183,43108.0,43107.0,0.00119093]
[1642706968220,0.3225183,43108.0,43104.0,0.00019233]
[1642706968419,0.44066437,43108.0,43107.0,0.0012597]
[1642706968620,0.44066437,43108.0,43107.0,0.00119094]
[1642706968823,0.44066437,43108.0,43107.0,0.0012597]
[1642706969424,0.44066437,43108.0,43107.0,6.876e-05]
[1642706969822,0.45866437,43108.0,43105.0,0.00119096]
[1642706970024,0.45866437,43108.0,43106.0,8.595e-05]
[1642706970225,0.3405183,43108.0,43106.0,8.595e-05]
[1642706971068,0.3405183,43108.0,43105.0,0.00119096]
[1642706971270,0.3405183,43108.0,43106.0,8.595e-05]
[1642706971670,0.3305183,43108.0,43106.0,8.595e-05]
[1642706972271,0.3305183,43108.0,43105.0,0.00119096]
[1642706972472,0.3305183,43108.0,43106.0,8.595e-05]
[1642706972871,0.3225183,43108.0,43106.0,8.595e-05]
[1642706973370,0.3225183,43108.0,43105.0,0.00119096]
[1642706973871,0.3305183,43108.0,43106.0,8.595e-05]
[1642706974671,0.3305183,43108.0,43104.0,0.0013113]
[1642706974918,0.3225183,43108.0,43105.0,0.00010314]
[1642706975721,0.3265183,43108.0,43105.0,0.00010314]
[1642706975919,0.3265183,43108.0,43104.0,0.00119097]
[1642706976217,0.3265183,43108.0,43105.0,0.00010314]
[1642706976822,0.3765183,43108.0,43105.0,0.00010314]
[1642706977019,0.3725183,43108.0,43104.0,0.00119098]
[1642706977221,0.3725183,43108.0,43105.0,0.00010314]
[1642706978226,0.3725183,43108.0,43104.0,0.00119097]
[1642706978420,0.3725183,43108.0,43105.0,0.00010314]
[1642706978871,0.3225183,43108.0,43105.0,0.00010314]
[1642706979473,0.3225183,43108.0,43104.0,0.00119097]
[1642706979672,0.3225183,43108.0,43105.0,0.00010314]
[1642706980571,0.3225183,43108.0,43104.0,0.00119097]
[1642706980775,0.3225183,43108.0,43105.0,0.00010314]
[1642706981773,0.3225183,43108.0,43104.0,0.00119097]
[1642706981973,0.3225183,43108.0,43105.0,0.00010314]
[1642706983014,0.3225183,43108.0,43104.0,0.00119097]
[1642706983015,0.32245652,43108.0,43104.0,0.00119097]
[1642706983215,0.32245652,43108.0,43105.0,0.00010314]
[1642706983816,0.32345652,43108.0,43105.0,0.00010314]
[1642706984115,0.32345652,43108.0,43104.0,0.00119097]
[1642706984516,0.32345652,43108.0,43105.0,0.00010314]
[1642706985115,0.32245652,43108.0,43105.0,0.00010314]
[1642706985315,0.11816033,43107.0,43105.0,0.00010314]
[1642706986664,0.11816033,43107.0,43104.0,0.00119098]
[1642706986865,0.11816033,43107.0,43105.0,0.00010314]
[1642706987865,0.12116033,43107.0,43104.0,0.00119098]
[1642706988064,0.12116033,43107.0,43105.0,0.00010314]
[1642706988268,0.003,43107.0,43105.0,0.00010314]
[1642706989065,0.32245652,43108.0,43104.0,0.00119098]
[1642706989265,0.32245652,43108.0,43105.0,0.00010314]
[1642706989469,0.11816516,43107.0,43105.0,0.00010314]
[1642706990318,0.11816516,43107.0,43104.0,0.00119097]
[1642706990519,0.11816516,43107.0,43105.0,0.00010314]
[1642706991519,0.11816516,43107.0,43104.0,0.00119098]
[1642706991719,0.12716516,43107.0,43105.0,0.00010314]
[1642706992219,0.009,43107.0,43105.0,0.00010314]
[1642706992421,0.11816549,43106.0,43105.0,0.00010314]
[1642706992620,0.11816549,43106.0,43104.0,0.00119098]
[1642706992820,0.11816549,43106.0,43105.0,0.35010314]
[1642706993422,0.11816549,43107.0,43105.0,0.35010314]
[1642706993695,0.32245652,43108.0,43105.0,0.35]
[1642706993696,0.12816549,43106.0,43105.0,0.35]
[1642706993900,0.12816549,43106.0,43105.0,0.345]
[1642706994095,0.12816549,43106.0,43105.0,0.34510314]
[1642706994294,0.01,43106.0,43105.0,0.34510314]
[1642706994693,0.12816701,43106.0,43105.0,0.00010314]
[1642706995095,0.11816701,43106.0,43103.0,0.00132851]
[1642706995294,0.11816701,43106.0,43104.0,0.00012033]
[1642706995495,0.11816701,43107.0,43104.0,0.00012033]
[1642706995896,0.008,43106.0,43104.0,0.00012033]
[1642706996296,0.008,43106.0,43103.0,0.00132851]
[1642706996500,0.008,43106.0,43104.0,0.00012033]
[1642706996898,0.11816894,43105.0,43104.0,0.00012033]
[1642706997529,0.11816894,43105.0,43103.0,0.00119099]
[1642706997825,0.12216894,43105.0,43104.0,0.00012033]
[1642706998625,0.05,43104.0,43102.0,0.00134572]
[1642706998826,0.05,43104.0,43103.0,0.00013752]
[1642706999029,0.057146,43104.0,43103.0,0.00013752]
[1642706999225,0.057546,43104.0,43103.0,0.00013752]
[1642706999427,0.057146,43104.0,43103.0,0.00013752]
[1642706999629,0.057546,43104.0,43103.0,0.00013752]
[1642706999827,0.077146,43104.0,43102.0,0.00015471]
[1642707000026,0.0704,43104.0,43102.0,0.00015471]
[1642707000225,0.0708,43104.0,43102.0,0.00015471]
[1642707000430,0.0704,43104.0,43102.0,0.00015471]
[1642707000626,0.0708,43104.0,43102.0,0.00015471]
[1642707000827,0.0704,43104.0,43102.0,0.00015471]
[1642707001070,0.006746,43103.0,43102.0,0.00015471]
[1642707001674,0.007546,43103.0,43102.0,0.00015471]
[1642707001873,0.37324584,43103.0,43102.0,0.00015471]
[1642707002071,0.37364584,43103.0,43102.0,0.00015471]
[1642707002272,0.47411107,43103.0,43102.0,0.00015471]
[1642707002472,1.12051107,43103.0,43102.0,0.00015471]
[1642707002871,1.27804139,43103.0,43085.0,0.10694472]
[1642707003073,0.0004,43092.0,43085.0,0.10694472]
[1642707003274,0.0004,43092.0,43082.0,0.09539138]
[1642707003275,0.25117703,43083.0,43082.0,0.09539138]
[1642707003473,0.25117703,43083.0,43082.0,0.75]
[1642707003671,0.25117703,43083.0,43082.0,0.75006876]
[1642707003870,0.25317703,43083.0,43082.0,0.75006876]
[1642707004072,0.25317703,43083.0,43082.0,0.75000364]
[1642707004673,0.4820726,43083.0,43082.0,0.75000364]
[1642707005118,0.4799726,43083.0,43082.0,0.75000364]
[1642707005319,0.25107703,43083.0,43082.0,6.876e-05]
[1642707005620,0.19071806,43090.0,43082.0,0.30006876]
[1642707005818,0.00135548,43091.0,43082.0,0.30006876]
[1642707005819,0.003,43083.0,43082.0,0.30006876]
[1642707006021,8.595e-05,43091.0,43084.0,0.006]
[1642707006218,6.876e-05,43090.0,43084.0,0.006]
[1642707006619,0.6254205,43095.0,43084.0,0.006]
[1642707006620,0.20548899,43087.0,43084.0,0.006]
[1642707006822,0.20548899,43087.0,43085.0,0.00119125]
[1642707007818,0.20648899,43087.0,43084.0,0.006]
[1642707008021,0.20648899,43087.0,43084.0,0.00719127]
[1642707008219,0.3133477,43085.0,43084.0,0.00719127]
[1642707008872,0.53945451,43085.0,43084.0,0.00719127]
[1642707009074,0.53945451,43085.0,43084.0,0.006]
[1642707009376,0.59956093,43085.0,43084.0,0.006]
[1642707009572,0.64596093,43085.0,43084.0,0.006]
[1642707009774,0.69952732,43085.0,43084.0,0.006]
[1642707010171,1.09685198,43085.0,43084.0,0.006]
[1642707011173,1.08585198,43085.0,43084.0,0.006]
[1642707011375,1.13585198,43085.0,43084.0,0.006]
[1642707011673,1.13707105,43085.0,43084.0,0.006]
[1642707011877,1.15467105,43085.0,43084.0,0.006]
[1642707012073,1.11250466,43085.0,43084.0,0.006]
[1642707012913,1.21250466,43085.0,43084.0,0.006]
[1642707013114,1.20073455,43085.0,43084.0,0.006]
[1642707013315,1.45073455,43085.0,43084.0,0.006]
[1642707013517,1.47736752,43085.0,43084.0,0.006]
[1642707013921,0.85781286,43085.0,43084.0,0.006]
[1642707014115,0.97604326,43085.0,43084.0,0.006]
[1642707014316,2.01273622,43085.0,43084.0,0.006]
[1642707014522,0.758074,43084.0,43082.0,0.00126005]
[1642707014720,0.39637892,43083.0,43082.0,0.00126005]
[1642707014918,0.56460932,43083.0,43082.0,0.00126005]
[1642707015117,0.67471574,43083.0,43082.0,6.876e-05]
[1642707015319,1.47399574,43083.0,43082.0,6.876e-05]
[1642707015519,0.8,43082.0,43074.0,0.00476595]
[1642707015718,0.006746,43078.0,43074.0,0.00476595]
[1642707015918,0.00830311,43076.0,43075.0,0.00012034]
[1642707016170,0.0004,43074.0,43071.0,0.01]
[1642707016371,0.406746,43075.0,43071.0,0.01]
[1642707016372,0.00802872,43072.0,43071.0,0.01]
[1642707016570,0.23749335,43072.0,43071.0,0.01]
[1642707016770,1.05319713,43072.0,43071.0,0.01006876]
[1642707016970,1.15319713,43072.0,43071.0,0.01006876]
[1642707017572,1.15319713,43072.0,43062.0,7.2e-05]
[1642707017573,0.0004,43070.0,43062.0,7.2e-05]
[1642707017772,0.053146,43069.0,43062.0,7.2e-05]
[1642707017972,0.053146,43069.0,43061.0,0.1099]
[1642707017973,0.053146,43069.0,43063.0,0.00013752]
[1642707018372,0.32607424,43065.0,43062.0,0.00022671]
[1642707018772,0.058075,43064.0,43062.0,0.00015471]
[1642707018971,0.058075,43064.0,43062.0,0.00022671]
[1642707019820,0.064075,43064.0,43062.0,0.00022671]
[1642707020517,0.01685242,43063.0,43062.0,0.00022671]
[1642707021918,0.02285242,43063.0,43062.0,0.00022671]
[1642707023122,0.01685242,43063.0,43062.0,0.00022671]
[1642707023978,0.02385242,43063.0,43062.0,0.00022671]
[1642707024985,0.01710642,43063.0,43062.0,0.00022671]
[1642707025182,0.01010642,43063.0,43062.0,0.65022671]
[1642707025882,0.01610642,43063.0,43062.0,0.66522671]
[1642707026482,0.01610642,43063.0,43062.0,0.015]
[1642707027335,0.01610642,43063.0,43062.0,1.1614]
[1642707027736,2.00321559,43076.0,43063.0,1.13221284]
[1642707027737,0.32524298,43074.0,43063.0,1.13221284]
[1642707027936,0.32524298,43074.0,43064.0,0.0464]
[1642707028136,0.00018909,43073.0,43064.0,0.0464]
[1642707028336,0.00018909,43073.0,43064.0,0.0465164]
[1642707028538,0.0001719,43072.0,43066.0,0.00119151]
[1642707028736,0.0001719,43072.0,43067.0,0.0464]
[1642707028940,0.00015471,43071.0,43067.0,0.0464]
[1642707029336,0.00013752,43070.0,43067.0,0.0464]
[1642707029536,0.00013752,43070.0,43067.0,0.04759151]
[1642707029736,0.00012033,43069.0,43067.0,0.04759151]
[1642707029936,0.00012033,43069.0,43067.0,0.06159151]
[1642707030142,0.00010314,43068.0,43067.0,0.91159151]
[1642707030338,0.00010314,43068.0,43067.0,0.06159151]
[1642707030736,0.00010314,43068.0,43067.0,0.0604]
[1642707031187,0.00010314,43068.0,43067.0,0.4464]
[1642707031388,0.16599716,43068.0,43067.0,0.4464]
[1642707031785,0.00010314,43068.0,43067.0,0.4464]
[1642707031986,0.00010314,43068.0,43067.0,0.0654]
[1642707032187,0.00010314,43068.0,43067.0,0.4154]
[1642707033087,0.00010314,43068.0,43067.0,0.35]
[1642707033888,0.00010314,43068.0,43067.0,0.37]
[1642707035120,0.00010314,43068.0,43067.0,0.9]
[1642707035327,0.00010314,43068.0,43067.0,0.35]
[1642707035919,0.00010314,43068.0,43067.0,0.367]
[1642707036118,0.00010314,43068.0,43067.0,0.667]
[1642707036521,0.00010314,43068.0,43067.0,0.367]
[1642707037121,0.00010314,43068.0,43067.0,0.35]
[1642707038022,0.00010314,43068.0,43067.0,0.368]
[1642707039172,0.00010314,43068.0,43067.0,1.05]
[1642707040073,0.00010314,43068.0,43067.0,1.066]
[1642707040678,0.00010314,43068.0,43067.0,0.366]
[1642707041073,0.00010314,43068.0,43067.0,0.816]
[1642707041273,0.00010314,43068.0,43067.0,0.8]
[1642707041875,0.00010314,43068.0,43067.0,0.366]
[1642707042176,0.00010314,43068.0,43067.0,0.716]
[1642707043219,0.00010314,43068.0,43067.0,1.03669296]
[1642707043447,0.00010314,43068.0,43067.0,0.7464]
[1642707043822,0.00010314,43068.0,43067.0,0.8464]
[1642707044020,0.00010314,43068.0,43067.0,1.2614]
[1642707044220,0.29487657,43075.0,43070.0,0.0012713]
[1642707044422,0.29487657,43075.0,43071.0,0.0464]
[1642707044622,0.2949969,43075.0,43071.0,0.0464]
[1642707044821,0.2949969,43075.0,43071.0,0.046472]
[1642707045223,0.2949969,43075.0,43071.0,0.04766345]
[1642707045923,0.2949969,43075.0,43071.0,0.06066345]
[1642707046176,0.2949969,43075.0,43071.0,0.059472]
[1642707046372,0.2949969,43075.0,43071.0,0.06066345]
[1642707047174,0.2949969,43075.0,43071.0,0.04766345]
[1642707047373,0.2949969,43075.0,43071.0,0.046472]
[1642707047572,0.2949969,43075.0,43071.0,0.04766345]
[1642707047974,0.2949969,43075.0,43071.0,0.06066345]
[1642707048673,0.2949969,43075.0,43071.0,0.059472]
[1642707048873,0.2949969,43075.0,43071.0,0.06066345]
[1642707049473,0.2949969,43075.0,43071.0,0.04766345]
[1642707049918,0.2949969,43075.0,43071.0,0.059472]